[Event "FIDE WSTC Open 50 2025"]
[Site "Prague"]
[Date "2025.02.23"]
[Round "6.28"]
[White "Berg, Anders Hoyer"]
[Black "Trickov, Vasil"]
[Result "0-1"]
[Annotator "RC"]
[ECO "B50"]
[WhiteElo "2073"]
[BlackElo "2301"]
[PlyCount "120"]
[EventDate "2025.02.17"]
[EventType "team-tourn"]
[EventCountry "CZE"]
[SourceTitle "playchess.com"]
[Source "ChessBase"]
[SourceQuality "1"]
[TimeControl "40/5400+30:1800+30"]

1. e4 {[%emt 0:00:05]} c5 {[%emt 0:00:33]} 2. Nf3 {[%emt 0:00:18]} d6 {[%emt 0:00:21]} 3. d4 {[%emt 0:00:14]} Nf6 {[%emt 0:00:46]} 4. Nc3 {[%emt 0:00:41]} cxd4 {[%emt 0:00:20]} 5. Qxd4 {[%emt 0:00:19]} a6 {[%emt 0:05:49]} 6. e5 {[%emt 0:01:50]} Nc6 {[%emt 0:05:53]} 7. Qa4 {[%emt 0:00:22]} Ng4 {[%emt 0:08:34]} 8. exd6 {[%emt 0:24:47]} Qb6 {[%emt 0:07:09]} 9. Nd1 {[%emt 0:15:27]} exd6 {[%emt 0:12:07]} 10. Be2 {[%emt 0:09:03]} Be7 {[%emt 0:06:25]} 11. O-O {[%emt 0:04:21]} O-O {[%emt 0:06:19]} 12. c3 {[%emt 0:04:16]} Bf6 {[%emt 0:04:56]} 13. h3 {[%emt 0:05:52]} Nge5 {[%emt 0:03:18]} 14. Ne3 {[%emt 0:01:23]} Be6 {[%emt 0:04:21]} 15. Rd1 {[%emt 0:00:36]} Ne7 {[%emt 0:02:00]} 16. Nd4 {[%emt 0:06:42]} Bd7 {[%emt 0:02:09]} 17. Qb3 {[%emt 0:00:12]} Qc7 {[%emt 0:00:49]} 18. Nd5 {[%emt 0:01:31]} Nxd5 {[%emt 0:00:07]} 19. Qxd5 {[%emt 0:00:06]} Ba4 {[%emt 0:03:21]} 20. Nb3 {[%emt 0:10:07]} Rfd8 {[%emt 0:06:04]} 21. Be3 {[%emt 0:02:18]} Rac8 {[%emt 0:04:26]} 22. Rd2 {[%emt 0:04:30]} Qe7 {[%emt 0:07:28]} 23. Qa5 {[%emt 0:04:13]} Bd7 {[%emt 0:04:36]} 24. Rad1 {[%emt 0:00:44]} Nc6 {[%emt 0:03:00]} 25. Qh5 {[%emt 0:00:57]} Be6 {[%emt 0:00:45]} 26. Bd3 {[%emt 0:00:29]} g6 {[%emt 0:00:19]} 27. Qe2 {[%emt 0:00:40]} Ne5 {[%emt 0:00:30]} 28. Bb1 {[%emt 0:00:56]} Nc4 {[%emt 0:00:31]} 29. Rc2 {[%emt 0:00:34]} Bf5 {[%emt 0:00:39]} 30. Rcc1 {[%emt 0:00:20]} Bxb1 {[%emt 0:00:17]} 31. Rxb1 {[%emt 0:00:07]} Bg5 {[%emt 0:00:13]} 32. Rd3 {[%emt 0:00:59]} Re8 {[%emt 0:00:29]} 33. Re1 {[%emt 0:00:20]} Bxe3 {[%emt 0:01:05]} 34. fxe3 {[%emt 0:00:04]} Qc7 {[%emt 0:00:48]} 35. Nd4 {[%emt 0:01:07]} Qb6 {[%emt 0:00:29]} 36. Rb1 {[%emt 0:01:15]} Rc7 {[%emt 0:00:25]} 37. e4 {[%emt 0:00:35]} Rce7 {[%emt 0:00:30]} 38. Re1 {[%emt 0:00:29]} Qxb2 {[%emt 0:00:36]} 39. Qxb2 {[%emt 0:00:28]} Nxb2 {[%emt 0:00:03]} 40. Rde3 {[%emt 0:00:36]} Na4 {[%emt 0:00:42]} 41. Kf2 {[%emt 0:04:21]} Rc8 {[%emt 0:04:47]} 42. Ne2 {[%emt 0:00:59]} Rc4 {[%emt 0:01:56]} 43. Rd1 {[%emt 0:01:13]} Nc5 {[%emt 0:03:48]} 44. Rxd6 {[%emt 0:08:48]} Rcxe4 {[%emt 0:06:09]} 45. Rd8+ {[%emt 0:00:04]} Kg7 {[%emt 0:00:19]} 46. Rxe4 {[%emt 0:00:24]} Nxe4+ {[%emt 0:04:02]} 47. Kf3 {[%emt 0:00:20]} h5 {[%emt 0:01:05]} 48. Rc8 {[%emt 0:02:03]} Nd6 {[%emt 0:04:50]} 49. Rc5 {[%emt 0:00:33]} Ne4 {[%emt 0:05:04]} 50. Rc8 {[%emt 0:00:43]} Ng5+ {[%emt 0:00:11]} 51. Kf2 {[%emt 0:00:33]} Ne6 {[%emt 0:00:07]} 52. Kf3 {[%emt 0:08:11]} Kf6 {[%emt 0:00:59]} 53. c4 {[%emt 0:05:15]} Ke5 {[%emt 0:01:06]} 54. Ke3 {[%emt 0:00:28]} h4 {[%emt 0:01:11]} 55. Rh8 {[%emt 0:01:18]} g5 {[%emt 0:00:18]} 56. Rc8 {[%emt 0:00:03]} Rd7 {[%emt 0:01:02]} 57. Nc3 {[%emt 0:01:00]} Rc7 {[%emt 0:01:16]} 58. Rxc7 {[%emt 0:01:09]} Nxc7 {[%emt 0:00:02]} 59. Ne4 {[%emt 0:00:12]} Ne6 {[%emt 0:00:02]} 60. g3 {[%emt 0:01:18]} f5 {[%emt 0:00:22]} 0-1

[Event "FIDE WSTC Open 50 2025"]
[Site "Prague"]
[Date "2025.02.23"]
[Round "6.29"]
[White "Bischoff, Klaus"]
[Black "Plotkin, Victor"]
[Result "1/2-1/2"]
[Annotator "TA"]
[ECO "D31"]
[WhiteElo "2432"]
[BlackElo "2259"]
[PlyCount "45"]
[EventDate "2025.02.17"]
[EventType "team-tourn"]
[EventCountry "CZE"]
[SourceTitle "playchess.com"]
[Source "ChessBase"]
[SourceQuality "1"]
[TimeControl "40/5400+30:1800+30"]

{[%evp 17,45,0,0,-2,-8,-8,-5,0,0,-8,-7,-11,-7,-8,-5,-8,-5,-20,-21,-30,-13,-21,-7,-28,-18,-23,0,-26,0,-29]} 1. d4 {[%emt 0:00:07]} d5 {[%emt 0:00:04]} 2. c4 {[%emt 0:00:08]} e6 {[%emt 0:00:07]} 3. Nc3 {[%emt 0:00:12]} Be7 {[%emt 0:00:13]} 4. Nf3 {[%emt 0:00:33]} Nf6 {[%emt 0:00:08]} 5. Bg5 {[%emt 0:00:18]} b6 {[%emt 0:00:52]} 6. e3 {[%emt 0:06:03]} O-O {[%emt 0:01:51]} 7. Qb3 {[%emt 0:04:16]} Bb7 {[%emt 0:01:56]} 8. Bxf6 {[%emt 0:00:20]} Bxf6 {[%emt 0:00:11]} 9. cxd5 {[%emt 0:00:06]} exd5 {[%emt 0:01:43]} 10. Rd1 {[%emt 0:00:24] E12: Queen's Indian: Unusual White 4th moves, 4 a3, 4 Nc3 Bb7 5 a3 and 4 Nc3 Bb7 .} c6 {[%emt 0:05:51]} 11. Bd3 {[%emt 0:01:25]} Re8 {[%emt 0:02:54]} 12. O-O {[%emt 0:00:15]} Nd7 {[%emt 0:00:53][%cal Bb8d7,Bd7f8,Bf8e6][%mdl 32]} 13. Rfe1 {[%emt 0:04:07]} Nf8 {[%emt 0:03:29]} 14. e4 {[%emt 0:02:24]} g6 $146 {[%emt 0:08:07]} ({Predecessor:} 14... Ne6 15. Bb1 dxe4 16. Nxe4 g6 17. Ne5 Bg7 18. f4 Qc7 19. a3 Rad8 20. Ba2 c5 {1-0 Khalil,A-Sharbel,M (1987) Beirut op 7th 2014 (6)}) 15. exd5 {[%emt 0:10:44] [#] aiming for Rxe8.} Rxe1+ {[%emt 0:01:22]} 16. Nxe1 {[%emt 0:00:24]} cxd5 {[%emt 0:15:23][%cal Of8e6]} 17. Be2 {[%emt 0:04:01]} Ne6 {[%emt 0:01:15]} 18. Nc2 {[%emt 0:00:10]} Qd6 {[%emt 0:02:10]} 19. g3 {[%emt 0:00:51]} Rc8 {[%emt 0:03:09]} 20. Nb5 {[%emt 0:11:09]} Qe7 {[%emt 0:03:56]} 21. Nc3 {[%emt 0:10:42]} Qd6 {[%emt 0:08:20]} 22. Nb5 {[%emt 0:05:20]} Qe7 {[%emt 0:00:14]} 23. Nc3 {[%emt 0:00:32] An uneventful encounter.   Weighted Error Value: White=0.05 (flawless) /Black=0.07 (flawless)   OK:         	White=5     	Black=5} (23. Nxa7 Rxc2 24. Qxc2 Nxd4 (24... Bxd4 $2 {too greedy.} 25. Bg4 $18) 25. Rxd4 Bxd4 $19) 1/2-1/2

[Event "FIDE WSTC Open 50 2025"]
[Site "Prague"]
[Date "2025.02.23"]
[Round "6.30"]
[White "Cummings, David H."]
[Black "Seul, Georg"]
[Result "1/2-1/2"]
[Annotator "TA"]
[ECO "A21"]
[WhiteElo "2255"]
[BlackElo "2329"]
[PlyCount "116"]
[EventDate "2025.02.17"]
[EventType "team-tourn"]
[EventCountry "CZE"]
[SourceTitle "playchess.com"]
[Source "ChessBase"]
[SourceQuality "1"]
[TimeControl "40/5400+30:1800+30"]

{[%evp 9,116,22,31,25,30,26,27,14,27,27,24,17,17,4,3,7,4,14,30,19,27,19,27,14,26,22,29,30,37,6,30,34,62,0,0,-44,-37,-40,-44,-67,-54,-48,-38,-51,-64,-39,-53,-45,0,0,14,14,84,61,62,83,73,75,64,66,66,55,107,97,89,54,87,12,65,62,227,220,211,8,8,8,8,8,0,0,41,0,0,0,0,0,0,0,0,0,0,0,0,0,0,0,0,0,0,0,0,0,0,0,0,0,0,0,0]} 1. c4 {[%emt 0:00:11]} e5 {[%emt 0:00:06]} 2. Nc3 {[%emt 0:00:09]} Bb4 {[%emt 0:00:25]} 3. Nd5 {[%emt 0:00:17]} a5 {[%emt 0:00:49]} 4. Nf3 {[%emt 0:00:18]} d6 {[%emt 0:00:32]} 5. a3 {[%emt 0:00:27]} Bc5 {[%emt 0:00:07]} 6. e3 {[%emt 0:00:16] A21: English Opening: 1...e5 2 Nc3.} Nd7 {[%emt 0:01:00]} 7. d4 {[%emt 0:00:54]} Ba7 {[%emt 0:00:10]} 8. Qc2 {[%emt 0:01:50] White has an edge.} c6 {[%emt 0:03:20]} 9. Nc3 {[%emt 0:00:09]} Ngf6 {[%emt 0:03:17]} 10. Bd2 {[%emt 0:00:48]} O-O {[%emt 0:08:27]} 11. O-O-O {[%emt 0:02:34]} Re8 {[%emt 0:19:49]} 12. h3 {[%emt 0:01:33]} d5 {[%emt 0:17:02]} 13. cxd5 {[%emt 0:21:21]} cxd5 {[%emt 0:01:42]} 14. g4 {[%emt 0:01:50]} e4 {[%emt 0:03:02]} 15. Nh2 {[%emt 0:02:49]} Nb6 {[%emt 0:04:54]} 16. g5 {[%emt 0:00:56]} Nfd7 {[%emt 0:00:14]} 17. f4 $146 {[%emt 0:02:48]} ({Predecessor:} 17. Rg1 Nf8 18. h4 Bd7 19. Kb1 Rc8 20. Qb3 a4 21. Qb4 Be6 22. Nxa4 Qc7 23. Bb5 Nxa4 24. Qxa4 {0-1 Donchenko,A (2633)-Bjerre,J (2653) Biel GM2 Blitz 57th 2024 (4)}) 17... exf3 {[%emt 0:01:36]} 18. Nxf3 {[%emt 0:01:43]} Nf8 $1 {[%emt 0:01:00]} 19. Bd3 {[%emt 0:11:39]} Be6 {[%emt 0:09:15]} 20. h4 {[%emt 0:02:32]} Rc8 {[%emt 0:01:05]} 21. Kb1 {[%emt 0:14:14] White is more active.} (21. h5 $14) 21... Nc4 $11 {[%emt 0:00:14]} 22. g6 {[%emt 0:12:16]} fxg6 {[%emt 0:03:46][%cal Ob7b5]} (22... Nxd2+ 23. Qxd2 hxg6 24. Rdg1 $11) 23. Ng5 {[%emt 0:01:11] [#]} b5 {[%emt 0:02:42]} 24. Nxe6 {[%emt 0:01:11]} Rxe6 {[%emt 0:00:17]} 25. Bxc4 {[%emt 0:00:49]} Rxc4 {[%emt 0:00:59]} (25... bxc4 $6 26. h5 $11) 26. Qb3 {[%emt 0:00:40]} b4 {[%emt 0:01:12]} 27. axb4 {[%emt 0:00:50]} axb4 {[%emt 0:00:29]} 28. Na2 {[%emt 0:00:22]} Qd7 {[%emt 0:06:09]} 29. Rc1 {[%emt 0:02:05]} Rec6 {[%emt 0:03:05]} 30. Nxb4 {[%emt 0:00:45]} Qb7 {[%emt 0:04:47]} (30... Rc8 $11 {remains equal.}) 31. Qa2 {[%emt 0:06:21]} (31. Rxc4 {simplifies} Rxc4 32. Rc1 Rxc1+ 33. Kxc1 Ne6 34. Qxd5 Qxd5 35. Nxd5 Kf7 36. Kd1) 31... Rc7 {[%emt 0:00:44]} (31... Rxb4 $2 32. Bxb4 Rf6 33. Rhf1 $18) 32. Qa5 {[%emt 0:00:50]} Rd7 {[%emt 0:00:38]} 33. Rxc4 {[%emt 0:03:02]} dxc4 {[%emt 0:00:03]} 34. d5 {[%emt 0:00:12][%csl Od5] White has a strong passed pawn} c3 {[%emt 0:01:39]} 35. bxc3 {[%emt 0:02:14]} Ne6 {[%emt 0:00:13]} (35... Rf7 $14) 36. Rf1 {[%emt 0:00:44]} Nc5 {[%emt 0:00:23][%cal Ob7c8]} 37. Qa2 {[%emt 0:00:28]} h6 {[%emt 0:00:47] [#]} 38. Qc4 {[%emt 0:01:20] Prevents Ne4.} ({White should try} 38. Kc2 $1 $16) 38... Kh7 {[%emt 0:00:19]} (38... Re7 $11) 39. e4 {[%emt 0:00:51]} (39. Kc2 {seems wilder.} Rd8 40. Nc6 Re8 41. Rf4) 39... Rf7 $2 {[%emt 0:01:09]} ({Better is} 39... Re7 $14) 40. Rxf7 $18 {[%emt 0:03:11]} Qxf7 {[%emt 0:00:05] [#]} 41. Nc6 $2 {[%emt 0:07:31]} (41. Be3 $1 $18 {[%cal Re3c5]} Nb3 42. Bxh6) 41... Qf3 $1 $11 {[%emt 0:02:25] White must now prevent ...Qd1+.} 42. Nxa7 {[%emt 0:11:51]} Qd1+ $1 {[%emt 0:00:17]} 43. Kb2 {[%emt 0:01:04]} Qxd2+ {[%emt 0:00:17]} 44. Ka3 {[%emt 0:01:06]} Nxe4 {[%emt 0:11:37]} 45. Qxe4 {[%emt 0:04:50]} Qxc3+ {[%emt 0:00:05][%mdl 4096] Endgame. The position is equal.} 46. Ka4 {[%emt 0:00:08]} (46. Ka2 $5 Qa5+ $8 47. Kb3 Qb6+ 48. Kc3 Qxa7 49. h5 Qa3+ 50. Kd4 Qb4+ 51. Ke5 Qe7+ 52. Kd4 Qxe4+ 53. Kxe4 $11) 46... Qa1+ {[%emt 0:00:04]} 47. Kb5 {[%emt 0:00:15]} Qxa7 {[%emt 0:00:06] KQ-KQ. Black is a pawn up.} 48. d6 {[%emt 0:01:18]} Qb8+ {[%emt 0:01:23]} 49. Kc5 {[%emt 0:00:11]} Qa7+ {[%emt 0:01:24]} 50. Kd5 {[%emt 0:00:35]} Qa8+ {[%emt 0:03:20]} 51. Ke5 Qe8+ {[%emt 0:00:49]} 52. Kd4 {[%emt 0:02:10]} Qd7 {[%emt 0:09:29]} 53. Qe7 {[%emt 0:01:43]} Qa4+ {[%emt 0:00:39]} 54. Ke5 {[%emt 0:01:03]} Qb5+ {[%emt 0:00:07]} 55. Kd4 {[%emt 0:00:37] Threatens to win with Qc7.} Qb4+ {[%emt 0:00:11]} 56. Ke3 {[%emt 0:02:28]} Qc3+ {[%emt 0:00:30]} 57. Kf2 {[%emt 0:00:18]} Qd2+ {[%emt 0:00:17]} 58. Kf3 {[%emt 0:00:17]} Qd3+ {[%emt 0:00:13] Weighted Error Value: White=0.14 (very precise) /Black=0.14 (very precise)   Loses game:     	---       	Black=1      Missed win:     	White=1     	---        Mistake:       	White=2     	Black=3      Inaccurate:     	White=3     	Black=4      OK:         	White=29    	Black=20     Best:        	White=4     	Black=5      Strong:       	---       	Black=3} 1/2-1/2

[Event "FIDE WSTC Open 50 2025"]
[Site "Prague"]
[Date "2025.02.23"]
[Round "6.31"]
[White "Schulz, Klaus-Juergen"]
[Black "Barron, Michael"]
[Result "1-0"]
[Annotator "TA"]
[ECO "A80"]
[WhiteElo "2345"]
[BlackElo "2049"]
[PlyCount "71"]
[EventDate "2025.02.17"]
[EventType "team-tourn"]
[EventCountry "CZE"]
[SourceTitle "playchess.com"]
[Source "ChessBase"]
[SourceQuality "1"]
[TimeControl "40/5400+30:1800+30"]

{[%evp 9,71,21,31,0,3,-9,3,-13,-16,-63,-14,-33,-2,-14,0,-7,0,-6,2,-23,-23,-45,-18,-17,64,52,99,118,95,102,137,65,178,177,139,1,123,124,152,-43,296,159,180,176,216,210,237,245,265,259,269,225,445,461,441,461,438,329,1061,1065,1064,1064,3071,2934]} 1. d4 {[%emt 0:00:04]} f5 {[%emt 0:00:10]} 2. Bf4 {[%emt 0:00:11]} Nf6 {[%emt 0:00:55]} 3. e3 {[%emt 0:00:08]} e6 {[%emt 0:02:57]} 4. Nf3 {[%emt 0:01:45]} b6 {[%emt 0:00:17]} 5. c4 {[%emt 0:06:35]} Bb4+ {[%emt 0:02:27]} 6. Nc3 {[%emt 0:05:03] A80: Dutch Defence: Unusual White second moves.} Bxc3+ {[%emt 0:00:22]} 7. bxc3 {[%emt 0:00:07]} Bb7 {[%emt 0:00:10]} 8. Nd2 {[%emt 0:34:37] The position is equal.} O-O {[%emt 0:01:24]} 9. f3 {[%emt 0:03:51]} (9. Bg3 $11) 9... d6 {[%emt 0:00:16]} (9... Nh5 $15 {should be considered.}) 10. Bg5 $146 {[%emt 0:03:41]} (10. Bd3 Qe7 11. Bg5 h6 12. Bh4 g6 13. O-O e5 14. e4 g5 15. Bf2 f4 16. g3 {½-½ Cramling Bellon,A (1970)-Svorono,G (2094) Rilton Cup 46th 2016 (6)}) 10... Nbd7 {[%emt 0:01:25]} 11. Bd3 {[%emt 0:07:20]} h6 {[%emt 0:01:00]} 12. Bh4 {[%emt 0:00:37]} Qe7 {[%emt 0:01:50]} 13. Qe2 {[%emt 0:04:48]} Rae8 {[%emt 0:01:00]} 14. O-O-O {[%emt 0:09:03]} Qf7 {[%emt 0:02:49]} 15. Bf2 {[%emt 0:06:33]} Qh5 {[%emt 0:03:20]} 16. h3 {[%emt 0:01:00][%cal Bh2h3,Bh3g4][%mdl 32]} Re7 {[%emt 0:01:57]} (16... Qf7 $11) 17. g4 $14 {[%emt 0:01:37]} fxg4 {[%emt 0:00:20]} (17... Qe8 $14) 18. hxg4 $16 {[%emt 0:00:13]} Qa5 {[%emt 0:00:17][%csl LRa2,LRc3]} 19. Kb2 {[%emt 0:01:20]} Nh7 {[%emt 0:04:09]} 20. Rh5 {[%emt 0:06:28]} (20. Bh4 $16 Ree8 21. Bg6) 20... c5 {[%emt 0:02:34]} ({Black should play} 20... e5 $14) 21. Bg3 $1 $36 {[%emt 0:02:45][%mdl 2048] Black is under strong pressure.} e5 {[%emt 0:00:41]} 22. d5 {[%emt 0:00:09]} (22. dxe5 $1 $16 Nxe5 23. Bc2) 22... Ndf6 {[%emt 0:00:52]} (22... b5 $1 $11 {keeps the balance.}) 23. Rhh1 $16 {[%emt 0:00:57]} Ng5 {[%emt 0:01:19]} 24. Bc2 $2 {[%emt 0:01:44] Repels b5} ({Better is} 24. Bh4 $16 e4 25. Nxe4 Ngxe4 26. fxe4 (26. Bxe4 Nxe4 27. Bxe7 Qxc3+ 28. Kb1 Rxf3 $11)) 24... Kf7 $2 {[%emt 0:01:15][%mdl 8192] This costs Black the game.} (24... b5 $1 $15 {stays ahead.}) 25. Bh4 {[%emt 0:00:22]} (25. Qd3 $18 {Hoping for Qg6+.} e4 26. fxe4 Nfxe4 27. Bh4) 25... Ke8 {[%emt 0:00:16]} 26. Qh2 {[%emt 0:01:00]} b5 {[%emt 0:01:49]} 27. f4 $1 {[%emt 0:00:39]} b4 {[%emt 0:04:16] [#]} 28. cxb4 {[%emt 0:00:20]} (28. fxg5 $6 hxg5 29. cxb4 (29. Bxg5 bxc3+ 30. Kb1 cxd2 $14) (29. Bg6+ Kd8 $11) 29... Qxb4+ 30. Bb3 gxh4 $16) 28... Qxb4+ {[%emt 0:00:32] [#]} 29. Bb3 $1 {[%emt 0:00:11]} exf4 {[%emt 0:00:59]} 30. exf4 {[%emt 0:00:27][%cal Be3f4,Bf4g5][%mdl 32]} Nxg4 $2 {[%emt 0:06:19]} (30... Nxd5 {might work better.} 31. cxd5 (31. fxg5 Qc3+ 32. Kb1 Qd3+ 33. Bc2 Nc3+ 34. Kc1 Nxa2+ 35. Kb2 Qc3+ 36. Kb1 Qa3 $15) 31... Rxf4 32. Bxg5 hxg5) 31. Qg3 $18 {[%emt 0:00:17]} Bc8 {[%emt 0:00:21] White must now prevent ...Re3.} (31... Re2 32. Rhe1 (32. Qxg4 Rxd2+ 33. Kb1 Bxd5 $18) 32... Rxe1 33. Rxe1+ (33. Qxe1+ Kf7 $18) 33... Kf7 34. Re2) 32. a3 {[%emt 0:01:01]} (32. fxg5 Re3 $14) 32... Qa5 {[%emt 0:01:27]} 33. fxg5 {[%emt 0:00:08]} Re3 $2 {[%emt 0:00:24]} (33... Rf2 34. Qc3 Qxc3+ 35. Kxc3 Rfe2) 34. Rhe1 {[%emt 0:00:23] White is clearly winning.} Qc3+ {[%emt 0:02:16]} 35. Ka2 {[%emt 0:00:02]} Rff3 {[%emt 0:04:23]} 36. Qxf3 {[%emt 0:00:34] Weighted Error Value: White=0.27 (precise) /Black=0.83  Loses game:     	---       	Black=1      Mistake:       	White=5     	Black=7      Inaccurate:     	---       	Black=3      OK:         	White=8     	Black=7      Best:        	White=2     	Black=2      Strong:       	White=3     	---} (36. Nxf3 {is a self mate.} Qxb3+ 37. Ka1 Qxa3+ (37... Qxc4 $2 {loses.} 38. Rxe3+ Nxe3 39. Qe1 $18) 38. Kb1 Bf5+) 1-0

[Event "FIDE WSTC Open 50 2025"]
[Site "Prague"]
[Date "2025.02.23"]
[Round "6.32"]
[White "Findlay, Ian T."]
[Black "Wolf, Volker"]
[Result "0-1"]
[Annotator "RC"]
[ECO "C05"]
[WhiteElo "2089"]
[BlackElo "2206"]
[PlyCount "94"]
[EventDate "2025.02.17"]
[EventType "team-tourn"]
[EventCountry "CZE"]
[SourceTitle "playchess.com"]
[Source "ChessBase"]
[SourceQuality "1"]
[TimeControl "40/5400+30:1800+30"]

1. e4 {[%emt 0:00:03]} e6 {[%emt 0:00:41]} 2. d4 {[%emt 0:00:09]} d5 {[%emt 0:00:10]} 3. Nd2 {[%emt 0:00:06]} Nf6 {[%emt 0:02:41]} 4. e5 {[%emt 0:00:22]} Nfd7 {[%emt 0:00:09]} 5. Bd3 {[%emt 0:00:11]} c5 {[%emt 0:00:21]} 6. c3 {[%emt 0:00:07]} b5 {[%emt 0:02:00]} 7. Ne2 {[%emt 0:02:15]} b4 {[%emt 0:00:40]} 8. O-O {[%emt 0:00:37]} bxc3 {[%emt 0:00:18]} 9. bxc3 {[%emt 0:00:04]} Be7 {[%emt 0:00:12]} 10. Nf4 {[%emt 0:01:36]} Ba6 {[%emt 0:02:01]} 11. Qg4 {[%emt 0:01:17]} g6 {[%emt 0:04:20]} 12. Bxa6 {[%emt 0:18:05]} Nxa6 {[%emt 0:00:19]} 13. Nf3 {[%emt 0:00:19]} cxd4 {[%emt 0:07:58]} 14. cxd4 {[%emt 0:02:10]} Nb4 {[%emt 0:11:19]} 15. h4 {[%emt 0:06:21]} h5 {[%emt 0:06:10]} 16. Qg3 {[%emt 0:02:25]} Nb6 {[%emt 0:03:28]} 17. Bd2 {[%emt 0:01:20]} Nc6 {[%emt 0:02:51]} 18. Nd3 {[%emt 0:06:33]} Nc4 {[%emt 0:04:37]} 19. Bg5 {[%emt 0:02:30]} Bxg5 {[%emt 0:01:22]} 20. hxg5 {[%emt 0:00:08]} Rb8 {[%emt 0:03:42]} 21. Qf4 {[%emt 0:09:53]} Rb6 {[%emt 0:05:30]} 22. Nc5 {[%emt 0:01:34]} Qe7 {[%emt 0:03:09]} 23. g3 {[%emt 0:00:21]} Kd8 {[%emt 0:05:54]} 24. Kg2 {[%emt 0:04:59]} Kc7 {[%emt 0:02:07]} 25. Rh1 {[%emt 0:00:40]} Rf8 {[%emt 0:04:24]} 26. g4 {[%emt 0:06:04]} hxg4 {[%emt 0:00:15]} 27. Qxg4 {[%emt 0:00:06]} Kb8 {[%emt 0:00:37]} 28. Rh7 {[%emt 0:01:46]} Ka8 {[%emt 0:00:35]} 29. Qf4 {[%emt 0:00:15]} Rb5 {[%emt 0:01:56]} 30. a4 {[%emt 0:01:55]} Rb2 {[%emt 0:02:40]} 31. Rah1 {[%emt 0:02:16]} Nd8 {[%emt 0:01:37]} 32. Rh8 {[%emt 0:01:01]} Rxh8 {[%emt 0:04:40]} 33. Rxh8 {[%emt 0:00:09]} Kb8 {[%emt 0:00:12]} 34. Qf6 {[%emt 0:10:55]} Qxf6 {[%emt 0:00:10]} 35. gxf6 {[%emt 0:00:06]} Kc7 {[%emt 0:00:28]} 36. Ng5 {[%emt 0:02:38]} Ne3+ {[%emt 0:01:30]} 37. Kg1 {[%emt 0:00:53]} Nf5 {[%emt 0:09:48]} 38. Rh7 {[%emt 0:00:39]} Nxd4 {[%emt 0:01:08]} 39. Nxf7 {[%emt 0:00:13]} Nxf7 {[%emt 0:00:54]} 40. Rxf7+ {[%emt 0:00:08]} Kc6 {[%emt 0:01:01]} 41. Re7 {[%emt 0:36:47]} Nf3+ {[%emt 0:34:43]} 42. Kg2 {[%emt 0:00:44]} Nxe5 {[%emt 0:00:09]} 43. Nd3 {[%emt 0:01:03]} Nxd3 {[%emt 0:00:36]} 44. Rxe6+ {[%emt 0:00:57]} Kc5 {[%emt 0:01:37]} 45. Re3 {[%emt 0:01:40]} Rxf2+ {[%emt 0:00:11]} 46. Kg3 {[%emt 0:00:06]} Rxf6 {[%emt 0:00:09]} 47. Rxd3 {[%emt 0:00:06]} d4 {[%emt 0:00:11]} 0-1